Workbook

Sheet 기본작업-1
A1: 상공상사 거래명세서

Sheet 기본작업-2
A1: 과일통조림 생산 현황
A3: 제품명 | B3: 생산일자 | C3: 생산팀 | D3: 생산단가 | E3: 목표량 | F3: 생산량 | G3: 생산율
A4: 원조황도 | B4: 2019-01-05 | C4: 생산1팀 | D4: 1200 | E4: 1500 | F4: 1435 | G4: =F4/E4 -> 0.9566666667
A5: 원조백도 | B5: 2019-01-05 | C5: 생산2팀 | D5: 1200 | E5: 1500 | F5: 1518 | G5: =F5/E5 -> 1.012
A6: 굿파인애플 | B6: 2019-01-05 | C6: 생산3팀 | D6: 2000 | E6: 1200 | F6: 1352 | G6: 1.126666667
A7: 믹스후르츠 | B7: 2019-01-06 | C7: 생산1팀 | D7: 2500 | E7: 1000 | F7: 1240 | G7: 1.24
A8: 망고세븐 | B8: 2019-01-06 | C8: 생산2팀 | D8: 3000 | E8: 800 | F8: 786 | G8: 0.9825
A9: 코코넛밀크 | B9: 2019-01-06 | C9: 생산3팀 | D9: 1800 | E9: 1400 | F9: 1385 | G9: 0.9892857143
A10: 리치키위 | B10: 2019-01-07 | C10: 생산1팀 | D10: 1500 | E10: 1300 | F10: 1389 | G10: 1.068461538
A11: 맛나오렌지 | B11: 2019-01-07 | C11: 생산2팀 | D11: 1150 | E11: 1600 | F11: 1579 | G11: 0.986875
A12: 스위트밀감 | B12: 2019-01-07 | C12: 생산3팀 | D12: 1000 | E12: 2000 | F12: 2168 | G12: 1.084
A13: 우리토마토 | B13: 2019-01-08 | C13: 생산1팀 | D13: 950 | E13: 2500 | F13: 2579 | G13: 1.0316
A14: 옐로바나나 | B14: 2019-01-08 | C14: 생산2팀 | D14: 1100 | E14: 1600 | F14: 1589 | G14: 0.993125
A15: 그린멜론 | B15: 2019-01-08 | C15: 생산3팀 | D15: 3200 | E15: 800 | F15: 872 | G15: 1.09

Sheet 기본작업-3
B1: 상공세무회계사무소 거래처 명단

Sheet 계산작업
A1: [표1] | B1: 가전제품 판매현황 | E1: (단위 : 만원) | G1: [표2] | H1: 신입사원 채용결과
A2: 제품명 | B2: 판매지역 | C2: 판매가 | D2: 판매량 | E2: 판매금액 | G2: 응시번호 | H2: 필기 | I2: 실기 | J2: 면접 | K2: 합격여부
A3: 냉장고 | B3: 서울 | C3: 250 | D3: 1268 | E3: =C3*D3 -> 317000 | G3: 125001 | H3: 49 | I3: 60 | J3: 55
A4: 냉장고 | B4: 경기 | C4: 250 | D4: 1109 | E4: =C4*D4 -> 277250 | G4: 125002 | H4: 85 | I4: 76 | J4: 58
A5: 냉장고 | B5: 인천 | C5: 250 | D5: 1384 | E5: 346000 | G5: 125003 | H5: 83 | I5: 81 | J5: 82
A6: 세탁기 | B6: 서울 | C6: 120 | D6: 957 | E6: 114840 | G6: 125004 | H6: 94 | I6: 92 | J6: 94
A7: 세탁기 | B7: 경기 | C7: 120 | D7: 1345 | E7: 161400 | G7: 125005 | H7: 87 | I7: 90 | J7: 91
A8: 세탁기 | B8: 인천 | C8: 120 | D8: 843 | E8: 101160 | G8: 125006 | H8: 64 | I8: 70 | J8: 65
A9: TV | B9: 서울 | C9: 200 | D9: 158 | E9: 31600 | G9: 125007 | H9: 92 | I9: 90 | J9: 69
A10: TV | B10: 경기 | C10: 200 | D10: 1762 | E10: 352400 | G10: 125008 | H10: 86 | I10: 83 | J10: 79
A11: TV | B11: 인천 | C11: 200 | D11: 989 | E11: 197800 | G11: 125009 | H11: 76 | I11: 73 | J11: 70
A12: 냉장고와 TV 판매금액 차이 | G12: 125010 | H12: 57 | I12: 64 | J12: 75
A14: [표3] | B14: 영업사원 실적표 | G14: [표4] | H14: 회원 관리 현황
A15: 사원명 | B15: 성별 | C15: 1월판매량 | D15: 2월판매량 | E15: 총판매량 | G15: 회원코드 | H15: 구매횟수 | I15: 총결제액 | J15: 고객등급
A16: 손애진 | B16: 여 | C16: 653 | D16: 595 | E16: =SUM(B16:D16) -> 1248 | G16: SG-501 | H16: 5 | I16: 1760000
A17: 이영해 | B17: 여 | C17: 311 | D17: 287 | E17: =SUM(B17:D17) -> 598 | G17: SG-502 | H17: 12 | I17: 4230000
A18: 최민석 | B18: 남 | C18: 550 | D18: 658 | E18: 1208 | G18: SG-503 | H18: 24 | I18: 8450000
A19: 원석빈 | B19: 남 | C19: 386 | D19: 426 | E19: 812 | G19: SG-504 | H19: 8 | I19: 2820000
A20: 하주원 | B20: 여 | C20: 828 | D20: 905 | E20: 1733 | G20: SG-505 | H20: 11 | I20: 3880000
A21: 이병훈 | B21: 남 | C21: 644 | D21: 684 | E21: 1328 | G21: SG-506 | H21: 22 | I21: 7750000
A22: 문소라 | B22: 여 | C22: 486 | D22: 401 | E22: 887 | G22: SG-507 | H22: 16 | I22: 5640000
A23: 장동군 | B23: 남 | C23: 385 | D23: 422 | E23: 807 | G23: SG-508 | H23: 27 | I23: 9510000
A24: 송강후 | B24: 남 | C24: 754 | D24: 706 | E24: 1460 | G24: SG-509 | H24: 24 | I24: 8450000
A25: 고소용 | B25: 여 | C25: 381 | D25: 317 | E25: 698 | G25: SG-510 | H25: 18 | I25: 6340000
A26: 여사원 총판매량 합계 | G26: SG-511 | H26: 9 | I26: 3170000
A28: [표5] | B28: 사원 관리 현황
A29: 사원코드 | B29: 사원명 | C29: 성별 | D29: 부서명 | E29: 직위
A30: 1-G-392 | B30: 김은희 | C30: 여 | D30: 영업부
A31: 2-D-284 | B31: 김주도 | C31: 남 | D31: 기획부
A32: 8-B-521 | B32: 유은별 | C32: 여 | D32: 영업부
A33: 2-S-742 | B33: 고사장 | C33: 남 | D33: 기획부
A34: 4-D-823 | B34: 성준혁 | C34: 남 | D34: 영업부 | G34: <직위표>
A35: 4-G-648 | B35: 임진성 | C35: 남 | D35: 기획부 | G35: 직위코드 | H35: 직위
A36: 5-S-478 | B36: 황진아 | C36: 여 | D36: 경리부 | G36: B | H36: 부장
A37: 6-S-732 | B37: 박하나 | C37: 여 | D37: 영업부 | G37: G | H37: 과장
A38: 5-B-324 | B38: 강대리 | C38: 남 | D38: 경리부 | G38: D | H38: 대리
A39: 7-D-543 | B39: 유서현 | C39: 여 | D39: 경리부 | G39: S | H39: 사원

Sheet 분석작업-1
A1: 1학년 중간고사 성적표
A3: 성명 | B3: 성별 | C3: 국어 | D3: 영어 | E3: 수학 | F3: 과학 | G3: 사회 | H3: 총점
A4: 윤산이 | B4: 여 | C4: 80 | D4: 83 | E4: 79 | F4: 82 | G4: 81 | H4: =SUM(C4:G4) -> 405
A5: 민우람 | B5: 남 | C5: 94 | D5: 97 | E5: 91 | F5: 92 | G5: 95 | H5: =SUM(C5:G5) -> 469
A6: 변정숙 | B6: 여 | C6: 85 | D6: 88 | E6: 84 | F6: 87 | G6: 86 | H6: 430
A7: 한진아 | B7: 여 | C7: 76 | D7: 80 | E7: 75 | F7: 78 | G7: 77 | H7: 386
A8: 정우성 | B8: 남 | C8: 68 | D8: 71 | E8: 67 | F8: 70 | G8: 69 | H8: 345
A9: 박재오 | B9: 남 | C9: 91 | D9: 92 | E9: 90 | F9: 92 | G9: 92 | H9: 457
A10: 남소현 | B10: 여 | C10: 48 | D10: 51 | E10: 47 | F10: 50 | G10: 49 | H10: 245
A11: 김정섭 | B11: 남 | C11: 76 | D11: 67 | E11: 75 | F11: 80 | G11: 77 | H11: 375
A12: 한예승 | B12: 여 | C12: 82 | D12: 91 | E12: 81 | F12: 84 | G12: 83 | H12: 421
A13: 유정만 | B13: 남 | C13: 64 | D13: 67 | E13: 63 | F13: 66 | G13: 65 | H13: 325
A14: 강소리 | B14: 여 | C14: 94 | D14: 97 | E14: 94 | F14: 96 | G14: 95 | H14: 476
A15: 강선빈 | B15: 남 | C15: 67 | D15: 70 | E15: 70 | F15: 69 | G15: 68 | H15: 344
A16: 신유라 | B16: 여 | C16: 78 | D16: 81 | E16: 77 | F16: 80 | G16: 79 | H16: 395
A17: 이고은 | B17: 여 | C17: 88 | D17: 94 | E17: 87 | F17: 90 | G17: 89 | H17: 448
A18: 배문기 | B18: 남 | C18: 94 | D18: 93 | E18: 93 | F18: 96 | G18: 92 | H18: 468
A19: 김병민 | B19: 남 | C19: 83 | D19: 83 | E19: 82 | F19: 82 | G19: 84 | H19: 414
A20: 이승학 | B20: 남 | C20: 71 | D20: 74 | E20: 80 | F20: 73 | G20: 72 | H20: 370

Sheet 분석작업-2
A1: 상공백화점 임대 현황
A3: 매장명 | B3: 매장구분 | C3: 매장위치 | D3: 보증금 | E3: 임대료 | F3: 관리비
A4: MCTRO | B4: 패션잡화 | C4: 1층 | D4: 150000000 | E4: 3200000 | F4: 1400000
A5: 둑스 | B5: 패션잡화 | C5: 1층 | D5: 180000000 | E5: 3800000 | F5: 1600000
A6: 페리페리 | B6: 패션잡화 | C6: 1층 | D6: 160000000 | E6: 3400000 | F6: 1400000
A7: 발렌슈아 | B7: 여성의류 | C7: 2층 | D7: 210000000 | E7: 4400000 | F7: 1900000
A8: GStyle | B8: 여성의류 | C8: 2층 | D8: 200000000 | E8: 4200000 | F8: 1800000
A9: 비비리토 | B9: 여성의류 | C9: 2층 | D9: 240000000 | E9: 5000000 | F9: 2200000
A10: K4 | B10: 아웃도어 | C10: 3층 | D10: 280000000 | E10: 5900000 | F10: 2500000
A11: 유스페이스 | B11: 아웃도어 | C11: 3층 | D11: 270000000 | E11: 5700000 | F11: 2400000
A12: 네푸 | B12: 아웃도어 | C12: 3층 | D12: 250000000 | E12: 5300000 | F12: 2300000
A13: 짜장나라 | B13: 중식당 | C13: 4층 | D13: 300000000 | E13: 6300000 | F13: 2700000
A14: 볼레오르 | B14: 양식당 | C14: 4층 | D14: 350000000 | E14: 7400000 | F14: 3200000
A15: 민국뚝배기 | B15: 한식당 | C15: 4층 | D15: 320000000 | E15: 6700000 | F15: 2900000

Sheet 매크로작업
A1: 컴퓨터활용능력 1급 필기 시험 결과
A3: 수험번호 | B3: 컴퓨터일반 | C3: 스프레드시트 | D3: 데이터베이스 | E3: 총점
A4: 1708-3401 | B4: 65 | C4: 55 | D4: 80
A5: 1708-3402 | B5: 75 | C5: 70 | D5: 60
A6: 1708-3403 | B6: 90 | C6: 95 | D6: 85
A7: 1708-3404 | B7: 80 | C7: 80 | D7: 85
A8: 1708-3405 | B8: 60 | C8: 45 | D8: 50
A9: 1708-3406 | B9: 40 | C9: 35 | D9: 50
A10: 1708-3407 | B10: 35 | C10: 40 | D10: 50
A11: 1708-3408 | B11: 85 | C11: 80 | D11: 70
A12: 1708-3409 | B12: 75 | C12: 90 | D12: 80
A13: 1708-3410 | B13: 65 | C13: 60 | D13: 50

Sheet 차트작업
A1: 스키제품 판매 현황
A3: 용품명 | B3: 입고량 | C3: 판매가 | D3: 판매량 | E3: 판매총액
A4: 스키복 | B4: 100 | C4: 95000 | D4: 67 | E4: =C4*D4 -> 6365000
A5: 고글 | B5: 160 | C5: 35000 | D5: 146 | E5: =C5*D5 -> 5110000
A6: 헬멧 | B6: 120 | C6: 40000 | D6: 97 | E6: 3880000
A7: 장갑 | B7: 150 | C7: 25000 | D7: 132 | E7: 3300000
A8: 보호대 | B8: 110 | C8: 45000 | D8: 101 | E8: 4545000
